fUSD/lending_fUSD_20251204
["ID","MTS","AMOUNT","RATE_DAILY","PERIOD"]
[396248383,1764875446456,-425.3574,0.00032,2]
[396248384,1764875446535,-529.68414465,0.00032,2]
[396248385,1764875446547,-234271.72767228,0.00032,2]
[396248386,1764875446557,-141463.51651905,0.00032,2]
[396248387,1764875446591,-3891.73401945,0.00032,2]
[396248388,1764875446603,-17642.05586194,0.00032,2]
[396248389,1764875446614,-534141.88406295,0.00032,2]
[396248390,1764875448194,-242871.01797372,0.00032,2]
[396248391,1764875448206,-339.2552879,0.00032,2]
[396248392,1764875448218,-21169.58590309,0.00032,2]
[396248393,1764875448229,-903.0,0.00032,2]
[396248394,1764875448263,-32019.766679,0.00032,2]
[396248395,1764875448272,-179.39665,0.00032,2]
[396248396,1764875448283,-163.0,0.00032,45]
[396248397,1764875448292,-11124.32002945,0.00032,2]
[396248398,1764875448301,-150.0,0.00032,6]
[396248399,1764875448311,-5561.42224973,0.00032,2]
[396248400,1764875448320,-150.0,0.00032,6]
[396248401,1764875448330,-333989.54933893,0.00032,2]
[396248402,1764875448344,-369508.32940249,0.00032,2]
[396248403,1764875448358,-284435.93,0.00032,2]
[396248404,1764875448399,-8034.96227502,0.00032,2]
[396248405,1764875448411,-684.39999965,0.00032,2]
[396248406,1764875448422,-390.711589,0.00032,2]
[396248407,1764875448458,-1218.6,0.00032,2]
[396248408,1764875448472,-521.11876182,0.00032,2]
[396248409,1764875448483,-14738.85477312,0.00032,2]
[396248410,1764875448494,-6224.83730109,0.00032,2]
[396248411,1764875562904,151.480873,8.995e-05,2]
[396248412,1764875563137,151.480873,8.995e-05,2]
[396248413,1764875563447,151.480873,8.995e-05,2]
[396248414,1764875563743,151.480873,8.995e-05,2]
[396248415,1764875564273,151.480873,8.995e-05,2]
[396248416,1764875564558,151.480873,8.995e-05,2]
[396248417,1764875564860,151.480873,8.995e-05,2]
[396248418,1764875565063,151.480873,8.995e-05,2]
[396248419,1764875565228,151.480873,8.995e-05,2]
[396248420,1764875565624,151.480873,8.995e-05,2]
[396248421,1764875567649,207.182141,8.995e-05,2]
[396248422,1764875573338,150.892171,8.995e-05,2]
[396248423,1764875573560,150.892171,8.995e-05,2]
[396248424,1764875573835,150.892171,8.995e-05,2]
[396248425,1764875574085,150.892171,8.995e-05,2]
[396248426,1764875574422,150.892171,8.995e-05,2]
[396248427,1764875574923,150.892171,8.995e-05,2]
[396248428,1764875575096,150.892171,8.995e-05,2]
[396248429,1764875575343,150.892171,8.995e-05,2]
[396248430,1764875575748,150.892171,8.995e-05,2]
[396248431,1764875576026,150.892171,8.995e-05,2]
[396248432,1764875576455,150.892171,8.995e-05,2]
[396248433,1764875576667,150.892171,8.995e-05,2]
[396248434,1764875576860,150.892171,8.995e-05,2]
[396248435,1764875577154,150.892171,8.995e-05,2]
[396248436,1764875577600,150.892171,8.995e-05,2]
[396248437,1764875577901,150.892171,8.995e-05,2]
[396248438,1764875578184,150.892171,8.995e-05,2]
[396248439,1764875578466,150.892171,8.995e-05,2]
[396248440,1764875578940,150.892171,8.995e-05,2]
[396248441,1764875579262,150.892171,8.995e-05,2]
[396248442,1764875579474,150.892171,8.995e-05,2]
[396248443,1764875579758,150.892171,8.995e-05,2]
[396248444,1764875580092,150.892171,8.995e-05,2]
[396248445,1764875580577,150.892171,8.995e-05,2]
[396248446,1764875581004,150.892171,8.995e-05,2]
[396248447,1764875581968,150.892171,8.995e-05,2]
[396248448,1764875582146,150.892171,8.995e-05,2]
[396248520,1764876567707,1644.23,8e-05,2]
[396248536,1764876633172,-474.202935,0.00014913,2]
[396248537,1764876633183,-622.797065,0.00014913,2]
[396248538,1764876633193,-195.0,0.00015135,2]
[396248539,1764876633202,-188.82551623,0.00015356,2]
[396248540,1764876633211,-211.21993944,0.00015473,2]
[396248541,1764876633220,-151.0,0.0001557,2]
[396248542,1764876633230,-300.0,0.00015572,2]
[396248543,1764876633241,-300.0,0.00015572,2]
[396248544,1764876633250,-1200.0,0.00015572,2]
[396248545,1764876633260,-300.0,0.00015572,2]
[396248546,1764876633269,-1277.87448913,0.00015573,2]
[396248547,1764876633307,-16960.30432719,0.00015573,2]
[396248548,1764876633318,-272.9999999,0.00015573,2]
[396248549,1764876633330,-2398.37374679,0.00015573,2]
[396248550,1764876633341,-1120.75944784,0.00015573,2]
[396248551,1764876636511,-534.06656813,0.00015573,2]
[396248552,1764876636523,-1826.99554,0.00015573,2]
[396248553,1764876636535,-271.037225,0.00015573,2]
[396248554,1764876636546,-484.112775,0.00015573,2]
[396248555,1764876636556,-2733.33,0.00015573,2]
[396248556,1764876636572,-395.53587766,0.00015573,2]
[396248559,1764876636646,-984.13374169,0.00015573,2]
[396248562,1764876636660,-15400.0,0.00015573,2]
[396248700,1764876639375,-4206.5670265,0.00014913,2]
[396248701,1764876639449,-4159.8758311,0.00014913,2]
[396248702,1764876639461,-10782.77174696,0.00014913,2]
[396248703,1764876639472,-7059.41785676,0.00014913,2]
[396248704,1764876639526,-36812.72017369,0.00014913,2]
[396248705,1764876639536,-172824.19470438,0.00015573,2]
[396248706,1764876639548,-133455.642416,0.00015573,2]
[396248707,1764876639559,-226047.39055462,0.00015573,2]
[396248708,1764876639570,-39002.81044286,0.00015573,2]
[396248709,1764876639581,-42907.60704898,0.00015573,2]
[396248710,1764876639633,-2107.85796543,0.00015573,2]
[396248711,1764876639644,-7285.22921585,0.00015573,2]
[396248712,1764876639655,-2549.6972956,0.00015573,2]
[396248713,1764876639666,-586.28385602,0.00015573,2]
[396248714,1764876639677,-2689.1280627,0.00015573,2]
[396248715,1764876639688,-352.63235744,0.00015573,2]
[396248718,1764876640674,-27486.97199998,0.00015573,2]
[396248719,1764876640685,-421.34937274,0.00015573,2]
[396248720,1764876640696,-921.44237553,0.00015573,2]
[396248721,1764876640727,-497.40000006,0.00015573,2]
[396248725,1764876640896,-56204.83859348,0.00015573,2]
[396248726,1764876640906,-9461.09127109,0.00015573,2]
[396248727,1764876640915,-6509.8196,0.00015673,2]
[396248728,1764876640925,-1000.0,0.00015673,2]
[396248729,1764876640935,-2500.0,0.00015673,2]
[396248730,1764876640945,-235.4048,0.00015673,2]
[396248731,1764876640955,-1097.0,0.00015698,2]
[396248732,1764876640964,-6314.550188,0.00015699,2]
[396248733,1764876640974,-500.0,0.00015772,2]
[396248734,1764876640984,-500.0,0.00015772,2]
[396248735,1764876640993,-500.0,0.00015772,2]
[396248736,1764876641003,-500.0,0.00015772,2]
[396248737,1764876641013,-500.0,0.00015772,2]
[396248738,1764876641022,-500.0,0.00015772,2]
[396248739,1764876641031,-500.0,0.00015772,2]
[396248740,1764876641041,-580.31967944,0.00015772,2]
[396248741,1764876641051,-500.0,0.00015772,2]
[396248742,1764876641062,-588.24188777,0.00015772,2]
[396248743,1764876641071,-500.0,0.00015772,2]
[396248744,1764876641080,-293.31651086,0.00015772,2]
[396248745,1764876641090,-510.70545985,0.00015799,2]
[396248746,1764876641100,-500.0,0.00015873,2]
[396248747,1764876641110,-429.24017763,0.00015873,2]
[396248748,1764876641120,-500.0,0.00015873,2]
[396248749,1764876641130,-500.0,0.00015873,2]
[396248750,1764876641140,-4539.32,0.00015966,2]
[396248751,1764876641151,-151.0,0.00015997,2]
[396248752,1764876641161,-201982.27828664,0.00016,4]
[396248753,1764876641171,-34560.93,0.000162,5]
[396248754,1764876641180,-686.11624212,0.00016304,2]
[396248755,1764876641190,-250.0,0.00016404,2]
[396248756,1764876641199,-195.0,0.00016404,2]
[396248757,1764876641209,-250.0,0.00016404,2]
[396248758,1764876641218,-300.0,0.00016404,2]
[396248759,1764876641229,-1097.0,0.00016524,2]
[396248760,1764876641238,-510.0,0.00016693,2]
[396248761,1764876641249,-229.86739996,0.00017014,2]
[396248762,1764876641259,-420.0,0.00017032,2]
[396248763,1764876641269,-277.0,0.00017132,2]
[396248764,1764876641278,-1097.0,0.00017394,2]
[396248765,1764876641288,-9461.09127106,0.00018165,2]
[396248766,1764876641298,-6314.550188,0.00018166,2]
[396248767,1764876641307,-1097.0,0.00018309,2]
[396248768,1764876641317,-202.8,0.0001859,2]
[396248769,1764876641327,-587.0,0.0001863,2]
[396248770,1764876641336,-480.06109419,0.00019108,2]
[396248771,1764876641347,-1097.0,0.00019273,2]
[396248772,1764876641358,-2964.58,0.00019473,2]
[396248773,1764876641594,-302.46560032,0.00019787,2]
[396248774,1764876641606,-202.8,0.00019809,2]
[396248775,1764876641615,-211.21993942,0.00020087,2]
[396248776,1764876641626,-1097.0,0.00020287,2]
[396248777,1764876641636,-250.0,0.00020358,2]
[396248778,1764876641647,-150.0,0.00020404,2]
[396248779,1764876641657,-200.0,0.00020436,2]
[396248780,1764876641667,-2751.0,0.00020446,2]
[396248781,1764876641677,-686.11624207,0.00020542,2]
[396248782,1764876641687,-6314.550188,0.00020633,2]
[396248783,1764876641697,-1000.0,0.00020659,2]
[396248784,1764876641707,-6884.62664141,0.000207,2]
[396248785,1764876641716,-5000.0,0.000207,2]
[396248786,1764876641726,-5000.0,0.000207,2]
[396248787,1764876641736,-5000.0,0.000207,2]
[396248788,1764876641746,-5000.0,0.000207,2]
[396248789,1764876641756,-9461.09127106,0.00020757,2]
[396248790,1764876641765,-166.66,0.00020839,2]
[396248791,1764876641775,-202.8,0.00021028,2]
[396248792,1764876641784,-1097.0,0.00021355,2]
[396248793,1764876641794,-166.66,0.00021526,2]
[396248794,1764876641807,-299.99,0.00021757,7]
[396248795,1764876641817,-300.0,0.00021954,2]
[396248796,1764876641827,-277.35679052,0.00021954,2]
[396248797,1764876641837,-166.66,0.00022214,2]
[396248798,1764876641847,-202.8,0.00022247,2]
[396248799,1764876641856,-249.25554546,0.00022247,2]
[396248800,1764876641866,-150.0,0.00022247,2]
[396248801,1764876641877,-150.0,0.00022247,2]
[396248802,1764876641886,-150.0,0.00022247,2]
[396248803,1764876641897,-500.0,0.00022247,2]
[396248804,1764876641907,-150.0,0.00022247,2]
[396248805,1764876641916,-169.71494383,0.00022247,2]
[396248806,1764876641925,-500.0,0.00022247,2]
[396248807,1764876641934,-150.0,0.00022247,2]
[396248808,1764876641944,-500.0,0.00022247,2]
[396248809,1764876641953,-500.0,0.00022247,2]
[396248810,1764876641963,-500.0,0.00022247,2]
[396248811,1764876641972,-150.0,0.00022384,2]
[396248812,1764876641982,-150.0,0.00022384,2]
[396248813,1764876641991,-150.0,0.00022384,2]
[396248814,1764876642001,-500.0,0.00022384,2]
[396248815,1764876642010,-500.0,0.00022384,2]
[396248816,1764876642020,-500.0,0.00022384,2]
[396248817,1764876642029,-500.0,0.00022384,2]
[396248818,1764876642038,-500.0,0.00022384,2]
[396248819,1764876642047,-1097.0,0.00022479,2]
[396248820,1764876642057,-150.0,0.00022521,2]
[396248821,1764876642067,-200.0,0.00022521,2]
[396248822,1764876642076,-500.0,0.00022521,2]
[396248823,1764876642085,-470.0,0.00022521,2]
[396248824,1764876642095,-327.14547934,0.00022521,2]
[396248825,1764876642104,-500.0,0.00022521,2]
[396248826,1764876642114,-150.0,0.00022658,2]
[396248827,1764876642123,-500.0,0.00022658,2]
[396248828,1764876642132,-500.0,0.00022658,2]
[396248829,1764876642141,-150.0,0.00022795,2]
[396248830,1764876642150,-500.0,0.00022795,2]
[396248831,1764876642160,-500.0,0.00022795,2]
[396248832,1764876642169,-166.66,0.00022902,2]
[396248833,1764876642178,-250.0,0.00022932,2]
[396248834,1764876642187,-500.0,0.00022932,2]
[396248835,1764876642196,-260.0,0.00022932,2]
[396248836,1764876642205,-500.0,0.00023069,2]
[396248837,1764876642215,-6314.550188,0.00023099,2]
[396248838,1764876642224,-500.0,0.00023206,2]
[396248839,1764876642234,-1000.0,0.00023241,2]
[396248840,1764876642243,-333.7107,0.00023323,2]
[396248841,1764876642252,-287.61899177,0.00023323,2]
[396248842,1764876642261,-500.0,0.00023343,2]
[396248843,1764876642270,-9461.09127106,0.00023349,2]
[396248844,1764876642280,-202.8,0.00023466,2]
[396248845,1764876642289,-166.66,0.0002359,2]
[396248846,1764876642298,-1097.0,0.00023603,2]
[396248847,1764876642307,-166.66,0.00024278,2]
[396248848,1764876642316,-1535.57,0.00024658,30]
[396248849,1764876642326,-285.46,0.00024658,2]
[396248850,1764876642335,-202.8,0.00024685,2]
[396248851,1764876642344,-298.26089446,0.00024692,2]
[396248852,1764876642354,-211.21993942,0.000247,2]
[396248853,1764876642363,-686.11624207,0.0002478,2]
[396248854,1764876642372,-1097.0,0.00024783,2]
[396248855,1764876642382,-150.84,0.0002479,2]
[396248856,1764876642391,-171.67608162,0.0002479,2]
[396248857,1764876642401,-151.0,0.00024797,7]
[396248858,1764876642410,-355.55996647,0.00024799,2]
[396248859,1764876642419,-940.91533727,0.00024799,2]
[396248860,1764876642429,-500.0,0.00024799,2]
[396248861,1764876642438,-501.70041075,0.00024799,2]
[396248862,1764876642447,-500.0,0.00024799,2]
[396248863,1764876642457,-500.0,0.00024799,2]
[396248864,1764876642466,-500.0,0.00024799,2]
[396248865,1764876642475,-196.55943663,0.00024799,2]
[396248866,1764876642485,-303.11169606,0.00024799,2]
[396248867,1764876642495,-500.0,0.00024799,2]
[396248868,1764876642505,-500.0,0.00024799,2]
[396248869,1764876642514,-500.0,0.00024799,2]
[396248870,1764876642524,-500.0,0.00024799,2]
[396248871,1764876642533,-500.0,0.00024799,2]
[396248872,1764876642543,-500.0,0.00024799,2]
[396248873,1764876642552,-500.0,0.00024799,2]
[396248874,1764876642562,-500.0,0.00024799,2]
[396248875,1764876642571,-500.0,0.00024799,2]
[396248876,1764876642580,-500.0,0.00024799,2]
[396248877,1764876642590,-500.0,0.00024799,2]
[396248878,1764876642600,-500.0,0.00024799,2]
[396248879,1764876642609,-500.0,0.00024799,2]
[396248880,1764876642621,-500.0,0.00024799,2]
[396248881,1764876642630,-500.0,0.00024799,2]
[396248882,1764876642639,-460.4377737,0.00024799,2]
[396248883,1764876642648,-500.0,0.00024799,2]
[396248884,1764876642658,-500.0,0.00024799,2]
[396248885,1764876642667,-500.0,0.00024799,2]
[396248886,1764876642677,-500.0,0.00024799,2]
[396248887,1764876642686,-500.0,0.00024799,2]
[396248888,1764876642696,-500.0,0.00024799,2]
[396248889,1764876642705,-500.0,0.00024799,2]
[396248890,1764876642715,-500.0,0.00024799,2]
[396248891,1764876642724,-200.0,0.00024799,2]
[396248892,1764876642734,-500.0,0.00024799,2]
[396248893,1764876642744,-500.0,0.00024799,2]
[396248894,1764876642754,-150.0,0.00024799,2]
[396248895,1764876642764,-266.46737986,0.00024799,2]
[396248896,1764876642773,-500.0,0.00024799,2]
[396248897,1764876642784,-298.48,0.000248,14]
[396248898,1764876642794,-329848.912854,0.000248,3]
[396248899,1764876642808,-92770.0067401,0.0002489,3]
[396248900,1764876642818,-151.0,0.00024897,7]
[396248901,1764876642828,-399660.000549,0.000249,3]
[396248902,1764876642839,-151.0,0.000249,7]
[396248903,1764876642849,-151.0,0.000249,7]
[396248904,1764876642859,-271.936074,0.000249,7]
[396248905,1764876642868,-151.0,0.000249,7]
[396248906,1764876642880,-271.936074,0.000249,7]
[396248907,1764876642890,-151.0,0.000249,7]
[396248908,1764876642900,-151.0,0.000249,7]
[396248909,1764876642909,-271.936074,0.000249,7]
[396248910,1764876642919,-271.936074,0.000249,7]
[396248911,1764876642929,-151.0,0.000249,7]
[396248912,1764876642939,-151.0,0.000249,7]
[396248913,1764876642948,-151.0,0.000249,7]
[396248914,1764876642958,-500.0,0.00024936,2]
[396248915,1764876642967,-500.0,0.00024936,2]
[396248916,1764876642976,-150.0,0.00024936,2]
[396248917,1764876642987,-500.0,0.00024936,2]
[396248918,1764876642998,-8503.40426699,0.0002498,3]
[396248919,1764876643008,-10307.7785267,0.0002499,3]
[396248920,1764876643018,-1586.15,0.00025,2]
[396248921,1764876643027,-200.0,0.00025073,2]
[396248922,1764876643039,-500.0,0.00025073,2]
[396248923,1764876643048,-150.0,0.00025073,2]
[396248924,1764876643058,-500.0,0.00025073,2]
[396248925,1764876643068,-311.58,0.00025073,2]
[396248926,1764876643077,-500.0,0.0002521,2]
[396248927,1764876643087,-150.0,0.0002521,2]
[396248928,1764876643096,-500.0,0.0002521,2]
[396248929,1764876643105,-8503.40426699,0.00025337,3]
[396248930,1764876643115,-1194.0,0.00025347,2]
[396248931,1764876643124,-909.0,0.00025347,2]
[396248932,1764876643133,-500.0,0.00025347,2]
[396248933,1764876643143,-150.0,0.00025347,2]
[396248934,1764876643153,-500.0,0.00025347,2]
[396248935,1764876643162,-311.58,0.00025347,2]
[396248936,1764876643171,-10307.7785267,0.00025474,3]
[396248937,1764876643180,-500.0,0.00025484,2]
[396248938,1764876643189,-250.0,0.00025484,2]
[396248939,1764876643199,-500.0,0.00025484,2]
[396248940,1764876643209,-8503.40426699,0.00025556,3]
[396248941,1764876643218,-6314.550188,0.00025566,2]
[396248942,1764876643227,-500.0,0.00025621,2]
[396248943,1764876643236,-500.0,0.00025621,2]
[396248944,1764876643247,-311.58,0.00025621,2]
[396248945,1764876643256,-500.0,0.00025758,2]
[396248946,1764876643265,-500.0,0.00025758,2]
[396248947,1764876643274,-1000.0,0.00025823,2]
[396248948,1764876643284,-200.0,0.00025895,2]
[396248949,1764876643293,-500.0,0.00025895,2]
[396248950,1764876643302,-311.59,0.00025895,2]
[396248951,1764876643312,-202.8,0.00025905,2]
[396248952,1764876643321,-9461.09127106,0.00025941,2]
[396248953,1764876643331,-1097.0,0.00026022,2]
[396248954,1764876643340,-350.0,0.00026032,2]
[396248955,1764876643349,-309.29654756,0.00026061,2]
[396248956,1764876643358,-8503.40426699,0.00026425,3]
[396248957,1764876643367,-10307.7785267,0.00026435,3]
[396248958,1764876643376,-500.0,0.00026474,2]
[396248959,1764876643385,-159.06,0.00026574,2]
[396248960,1764876643395,-202.8,0.00027124,2]
[396248961,1764876643403,-1097.0,0.00027323,2]
[396248962,1764876643412,-285.46,0.00027397,2]
[396248963,1764876643422,-1435.71,0.00027397,2]
[396248964,1764876643431,-151.0,0.00027397,7]
[396248965,1764876643440,-184.28285,0.00027397,7]
[396248966,1764876643449,-150.0,0.00027397,5]
[396248967,1764876643459,-320.74051982,0.0002743,2]
[396248968,1764876643468,-250.0,0.00027945,5]
[396248969,1764876643477,-6314.550188,0.00028033,2]
[396248970,1764876643486,-202.8,0.00028343,2]
[396248971,1764876643497,-1194.0,0.00028347,2]
[396248972,1764876643506,-909.0,0.00028347,2]
[396248973,1764876643515,-1000.0,0.00028406,2]
[396248974,1764876643524,-1051.26,0.00028488,120]
[396248975,1764876643533,-350.0,0.00028493,5]
[396248976,1764876643543,-9461.09127106,0.00028532,2]
[396248977,1764876643553,-8503.40426699,0.0002868,3]
[396248978,1764876643562,-1097.0,0.0002869,5]
[396248979,1764876643572,-332.60791905,0.00028799,2]
[396248980,1764876643581,-150.0,0.000288,4]
[396248981,1764876643590,-150.0,0.000288,4]
[396248982,1764876643599,-150.0,0.000288,4]
[396248983,1764876643609,-242.20759846,0.000288,4]
[396248984,1764876643618,-150.0,0.000288,4]
[396248985,1764876643627,-150.0,0.000288,4]
[396248986,1764876643637,-150.0,0.000288,4]
[396248987,1764876643646,-150.0,0.000288,4]
[396248988,1764876643656,-150.0,0.000288,4]
[396248989,1764876643665,-150.0,0.000288,4]
[396248990,1764876643675,-150.0,0.000288,4]
[396248991,1764876643685,-150.0,0.000288,4]
[396248992,1764876643694,-686.11624207,0.00029018,2]
[396248993,1764876643704,-547.09695169,0.00029041,5]
[396248994,1764876643714,-10307.7785267,0.00029124,3]
[396248995,1764876643723,-962.324,0.000292,22]
[396248996,1764876643733,-200.0,0.0002946,2]
[396248997,1764876643744,-200.0,0.0002946,2]
[396248998,1764876643754,-200.0,0.0002946,2]
[396248999,1764876643763,-200.0,0.0002946,2]
[396249000,1764876643773,-200.0,0.0002946,2]
[396249001,1764876643783,-200.0,0.0002946,2]
[396249002,1764876643793,-200.0,0.0002946,2]
[396249003,1764876643805,-200.0,0.0002946,2]
[396249004,1764876643814,-200.0,0.0002946,2]
[396249006,1764876643825,-200.0,0.0002946,2]
[396249008,1764876643834,-8503.40426699,0.0002948,3]
[396249010,1764876643845,-10307.7785267,0.0002949,3]
[396249012,1764876643855,-6033.0,0.000295,5]
[396249014,1764876643864,-202.8,0.00029562,2]
[396249016,1764876643875,-150.0,0.000296,7]
[396249017,1764876643885,-150.0,0.000296,7]
[396249018,1764876643894,-1000.0,0.000296,2]
[396249019,1764876643904,-361.53,0.00029673,2]
[396249020,1764876643913,-8503.40426699,0.00029694,3]
[396249021,1764876643924,-1535.57,0.00029704,30]
[396249022,1764876643933,-150.0,0.00029867,7]
[396249023,1764876643942,-200.0,0.0003,30]
[396249024,1764876643952,-1097.0,0.00030124,5]
[396249025,1764876643961,-285.46,0.00030137,2]
[396249026,1764876643971,-344.91441206,0.00030168,2]
[396249027,1764876643980,-500.0,0.00030356,14]
[396249028,1764876643990,-500.0,0.00030356,14]
[396249029,1764876644000,-150.0,0.000304,7]
[396249030,1764876644010,-150.0,0.000304,7]
[396249031,1764876644019,-150.0,0.000304,7]
[396249032,1764876644028,-150.0,0.00030411,2]
[396249033,1764876644038,-6314.550188,0.000305,2]
[396249035,1764876644047,-153.62656337,0.00030601,2]
[396249037,1764876644057,-8503.40426699,0.00030691,3]
[396249038,1764876644066,-5000.0,0.000307,2]
[396249039,1764876644077,-5000.0,0.000307,2]
[396249040,1764876644087,-5000.0,0.000307,2]
[396249041,1764876644097,-5000.0,0.000307,2]
[396249042,1764876644107,-202.8,0.00030781,2]
[396249043,1764876644116,-150.0,0.00030933,7]
[396249044,1764876644126,-1000.0,0.00030988,2]
[396249045,1764876644135,-475.1789657,0.0003104,2]
[396249046,1764876644145,-9461.09127106,0.00031124,2]
[396249047,1764876644154,-150.0,0.000312,7]
[396249048,1764876644163,-150.0,0.000312,7]
[396249049,1764876644173,-1000.0,0.000312,2]
[396249050,1764876644182,-8503.40426699,0.000312,3]
[396249051,1764876644191,-11239.20465555,0.0003121,2]
[396249052,1764876644200,-1194.0,0.00031347,2]
[396249053,1764876644211,-909.0,0.00031347,2]
[396249054,1764876644221,-357.6762453,0.00031537,2]
[396249055,1764876644230,-2000.0,0.000316,2]
[396249056,1764876644240,-1000.0,0.00031613,2]
[396249057,1764876644253,-8503.40426699,0.0003162,3]
[396249058,1764876644263,-1097.0,0.0003163,5]
[396249059,1764876644272,-200.0,0.00031743,2]
[396249060,1764876644281,-200.0,0.00031744,2]
[396249061,1764876644291,-8503.40426699,0.00031828,3]
[396249062,1764876644300,-311.1,0.00031838,3]
[396249063,1764876644310,-322.6107,0.00031838,3]
[396249064,1764876644320,-1000.0,0.00031838,3]
[396249065,1764876644330,-1000.0,0.00031838,3]
[396249066,1764876644340,-599.60298507,0.00031838,3]
[396249067,1764876644349,-1000.0,0.00031838,3]
[396249068,1764876644359,-1000.0,0.00031838,3]
[396249069,1764876644369,-1000.0,0.00031838,3]
[396249070,1764876644379,-1000.0,0.00031838,3]
[396249071,1764876644389,-1000.0,0.00031838,3]
[396249072,1764876644398,-1000.0,0.00031838,3]
[396249073,1764876644407,-1000.0,0.00031838,3]
[396249074,1764876644417,-1000.0,0.00031838,3]
[396249075,1764876644427,-1000.0,0.00031838,3]
[396249076,1764876644437,-151.0,0.00031838,3]
[396249077,1764876644447,-500.0,0.00031838,3]
[396249078,1764876644457,-695.39793187,0.00031838,3]
[396249079,1764876644467,-500.0,0.00031838,3]
[396249080,1764876644476,-500.0,0.00031838,3]
[396249081,1764876644485,-500.0,0.00031838,3]
[396249082,1764876644498,-500.0,0.00031838,3]
[396249083,1764876644507,-500.0,0.00031838,3]
[396249084,1764876644517,-500.0,0.00031838,3]
[396249085,1764876644529,-500.0,0.00031838,3]
[396249086,1764876644538,-500.0,0.00031838,3]
[396249087,1764876644547,-500.0,0.00031838,3]
[396249088,1764876644557,-500.0,0.00031838,3]
[396249089,1764876644567,-1000.0,0.00031887,2]
[396249090,1764876644576,-10949.36969026,0.000319,2]
[396249091,1764876644585,-996.08773306,0.000319,2]
[396249092,1764876644595,-8503.40426699,0.0003198,3]
[396249093,1764876644604,-150.0,0.00031989,20]
[396249094,1764876644613,-152.698752,0.0003199,31]
[396249095,1764876644622,-151.0,0.0003199,31]
[396249096,1764876644632,-164.302565,0.0003199,31]
[396249097,1764876644641,-182.053965,0.0003199,31]
[396249098,1764876644651,-151.0,0.0003199,31]
[396249099,1764876644660,-151.0,0.0003199,31]
[396249100,1764876644669,-151.0,0.0003199,31]
[396249101,1764876644679,-156.511989,0.0003199,31]
[396249102,1764876644688,-167.436766,0.0003199,31]
[396249103,1764876644698,-151.0,0.0003199,31]
[396249104,1764876644707,-151.0,0.0003199,31]
[396249105,1764876644717,-151.0,0.0003199,15]
[396249106,1764876644726,-151.0,0.0003199,15]
[396249107,1764876644735,-151.0,0.0003199,15]
[396249108,1764876644747,-151.0,0.0003199,15]
[396249109,1764876644757,-151.0,0.0003199,31]
[396249110,1764876644766,-2910.500639,0.0003199,31]
[396249111,1764876644776,-2910.500639,0.0003199,31]
[396249112,1764876644786,-2910.500639,0.0003199,31]
[396249115,1764876644969,-2910.500639,0.0003199,31]
[396249116,1764876644979,-298.37113,0.0003199,31]
[396249117,1764876644989,-247.679944,0.0003199,31]
[396249118,1764876645000,-151.0,0.0003199,31]
[396249119,1764876645010,-151.0,0.0003199,31]
[396249120,1764876645019,-151.0,0.0003199,31]
[396249121,1764876645028,-151.0,0.0003199,31]
[396249122,1764876645037,-151.0,0.0003199,28]
[396249123,1764876645047,-151.0,0.0003199,28]
[396249124,1764876645061,-151.0,0.0003199,31]